[Event "Titled Tuesday Blitz January 17 Late 2023"]
[White "Timmermans, Mark"]
[Black "Jobava, Baadur"]
[WhiteFideId "1026399"]
[BlackFideId "13601520"]
[WhiteElo "2392"]
[BlackElo "2578"]
[Result "0-1"]
[Round "03"]
[TimeControl "180+2"]
[Date "2023.01.17"]
[WhiteClock "0:00:56"]
[BlackClock "0:00:14"]

1. e4 {[%clk 0:02:49]}  c6 {[%clk 0:02:59]} 2. Nf3 {[%clk 0:02:47]}  d5 {[%clk 0:03:00]} 3. exd5 {[%clk 0:02:46]}  cxd5 {[%clk 0:03:00]} 4. Ne5 {[%clk 0:02:46]}  a6 {[%clk 0:02:59]} 5. d4 {[%clk 0:02:45]}  Bf5 {[%clk 0:02:57]} 6. Nc3 {[%clk 0:02:41]}  Nc6 {[%clk 0:02:55]} 7. Nxc6 {[%clk 0:02:39]}  bxc6 {[%clk 0:02:55]} 8. Bd3 {[%clk 0:02:33]}  Bg6 {[%clk 0:02:55]} 9. O-O {[%clk 0:02:29]}  e6 {[%clk 0:02:55]} 10. Na4 {[%clk 0:02:30]}  Bd6 {[%clk 0:02:55]} 11. c3 {[%clk 0:02:23]}  Ne7 {[%clk 0:02:51]} 12. Qf3 {[%clk 0:02:15]}  O-O {[%clk 0:02:38]} 13. Rd1 {[%clk 0:02:15]}  f6 {[%clk 0:02:28]} 14. Qh3 {[%clk 0:01:49]}  e5 {[%clk 0:02:11]} 15. dxe5 {[%clk 0:01:43]}  fxe5 {[%clk 0:02:07]} 16. Bg5 {[%clk 0:01:43]}  e4 {[%clk 0:01:54]} 17. Be2 {[%clk 0:01:36]}  Qc7 {[%clk 0:01:42]} 18. c4 {[%clk 0:01:30]}  Bf5 {[%clk 0:01:41]} 19. Bg4 {[%clk 0:01:24]}  Bxg4 {[%clk 0:01:17]} 20. Qxg4 {[%clk 0:01:25]}  Bxh2+ {[%clk 0:01:17]} 21. Kh1 {[%clk 0:01:25]}  Bf4 {[%clk 0:00:52]} 22. Bxe7 {[%clk 0:01:20]}  Qxe7 {[%clk 0:00:51]} 23. cxd5 {[%clk 0:01:20]}  cxd5 {[%clk 0:00:39]} 24. Rxd5 {[%clk 0:01:21]}  Rae8 {[%clk 0:00:31]} 25. Nc3 {[%clk 0:01:19]}  e3 {[%clk 0:00:30]} 26. fxe3 {[%clk 0:01:20]}  Qxe3 {[%clk 0:00:28]} 27. Rf1 {[%clk 0:01:02]}  Bb8 {[%clk 0:00:17]} 28. Rdf5 {[%clk 0:00:57]}  Qh6+ {[%clk 0:00:16]} 29. Qh3 {[%clk 0:00:56]}  Rxf5 {[%clk 0:00:14]} 0-1


[Site "https://www.chess.com"]

[Event "Titled Tuesday Blitz January 17 Late 2023"]
[White "Wieczorek, Oskar"]
[Black "Zierk, Steven"]
[WhiteFideId "1133950"]
[BlackFideId "2034255"]
[WhiteElo "2512"]
[BlackElo "2488"]
[Result "1/2-1/2"]
[Round "03"]
[TimeControl "180+2"]
[Date "2023.01.17"]
[WhiteClock "0:00:23"]
[BlackClock "0:00:07"]

1. e4 {[%clk 0:03:00]}  e6 {[%clk 0:02:59]} 2. d4 {[%clk 0:03:01]}  d5 {[%clk 0:03:00]} 3. Nd2 {[%clk 0:03:01]}  c5 {[%clk 0:03:00]} 4. exd5 {[%clk 0:03:01]}  Qxd5 {[%clk 0:03:01]} 5. Ngf3 {[%clk 0:03:02]}  cxd4 {[%clk 0:03:01]} 6. g3 {[%clk 0:03:02]}  Nc6 {[%clk 0:02:40]} 7. Bg2 {[%clk 0:03:02]}  Qb5 {[%clk 0:02:32]} 8. a4 {[%clk 0:03:01]}  Qa6 {[%clk 0:02:27]} 9. Bf1 {[%clk 0:03:01]}  Qb6 {[%clk 0:02:25]} 10. Bg2 {[%clk 0:02:58]}  Bb4 {[%clk 0:02:09]} 11. O-O {[%clk 0:02:58]}  Nf6 {[%clk 0:02:08]} 12. Nb3 {[%clk 0:02:48]}  e5 {[%clk 0:01:59]} 13. a5 {[%clk 0:02:46]}  Qc7 {[%clk 0:01:56]} 14. c3 {[%clk 0:02:26]}  dxc3 {[%clk 0:01:55]} 15. bxc3 {[%clk 0:02:27]}  Be7 {[%clk 0:01:52]} 16. a6 {[%clk 0:02:06]}  O-O {[%clk 0:01:46]} 17. Ba3 {[%clk 0:02:04]}  Rb8 {[%clk 0:01:26]} 18. axb7 {[%clk 0:01:57]}  Bxb7 {[%clk 0:01:23]} 19. Nc5 {[%clk 0:01:57]}  Bc8 {[%clk 0:01:09]} 20. Qa4 {[%clk 0:01:54]}  Nd5 {[%clk 0:01:01]} 21. Na6 {[%clk 0:01:36]}  Bxa6 {[%clk 0:00:53]} 22. Qxa6 {[%clk 0:01:36]}  e4 {[%clk 0:00:39]} 23. Nd4 {[%clk 0:01:23]}  Nxd4 {[%clk 0:00:33]} 24. cxd4 {[%clk 0:01:23]}  Rb6 {[%clk 0:00:14]} 25. Qa5 {[%clk 0:01:23]}  Bxa3 {[%clk 0:00:12]} 26. Rxa3 {[%clk 0:01:20]}  Nf6 {[%clk 0:00:07]} 27. Qxa7 {[%clk 0:01:16]}  Qxa7 {[%clk 0:00:08]} 28. Rxa7 {[%clk 0:01:16]}  Rd6 {[%clk 0:00:09]} 29. Rd1 {[%clk 0:01:12]}  Rfd8 {[%clk 0:00:09]} 30. Bf1 {[%clk 0:01:13]}  R6d7 {[%clk 0:00:07]} 31. Rxd7 {[%clk 0:01:12]}  Rxd7 {[%clk 0:00:08]} 32. Bc4 {[%clk 0:01:12]}  g5 {[%clk 0:00:08]} 33. Kf1 {[%clk 0:01:11]}  Kg7 {[%clk 0:00:08]} 34. h3 {[%clk 0:01:10]}  Rc7 {[%clk 0:00:07]} 35. Bb3 {[%clk 0:00:58]}  Rc3 {[%clk 0:00:07]} 36. Ba2 {[%clk 0:00:57]}  e3 {[%clk 0:00:06]} 37. fxe3 {[%clk 0:00:51]}  Rxe3 {[%clk 0:00:07]} 38. d5 {[%clk 0:00:52]}  Rxg3 {[%clk 0:00:06]} 39. d6 {[%clk 0:00:53]}  Rxh3 {[%clk 0:00:06]} 40. Bd5 {[%clk 0:00:38]}  Rh4 {[%clk 0:00:04]} 41. Bc6 {[%clk 0:00:33]}  Rf4+ {[%clk 0:00:03]} 42. Kg2 {[%clk 0:00:32]}  Rc4 {[%clk 0:00:02]} 43. d7 {[%clk 0:00:33]}  Nxd7 {[%clk 0:00:02]} 44. Bxd7 {[%clk 0:00:33]}  Kg6 {[%clk 0:00:03]} 45. Bb5 {[%clk 0:00:30]}  Rc2+ {[%clk 0:00:03]} 46. Kg3 {[%clk 0:00:30]}  f5 {[%clk 0:00:03]} 47. Rd6+ {[%clk 0:00:29]}  Kg7 {[%clk 0:00:03]} 48. Bd3 {[%clk 0:00:29]}  Rc3 {[%clk 0:00:03]} 49. Kf2 {[%clk 0:00:29]}  f4 {[%clk 0:00:03]} 50. Kf3 {[%clk 0:00:28]}  h5 {[%clk 0:00:03]} 51. Ke2 {[%clk 0:00:23]}  g4 {[%clk 0:00:02]} 52. Rg6+ {[%clk 0:00:24]}  Kf7 {[%clk 0:00:03]} 53. Rh6 {[%clk 0:00:24]}  f3+ {[%clk 0:00:03]} 54. Ke3 {[%clk 0:00:24]}  f2 {[%clk 0:00:03]} 55. Kxf2 {[%clk 0:00:20]}  Rxd3 {[%clk 0:00:04]} 56. Rxh5 {[%clk 0:00:20]}  Kg6 {[%clk 0:00:04]} 57. Ra5 {[%clk 0:00:21]}  Rb3 {[%clk 0:00:04]} 58. Kg2 {[%clk 0:00:21]}  Kf6 {[%clk 0:00:04]} 59. Kf2 {[%clk 0:00:22]}  Rf3+ {[%clk 0:00:04]} 60. Kg2 {[%clk 0:00:22]}  Kg6 {[%clk 0:00:05]} 61. Rb5 {[%clk 0:00:22]}  Rf5 {[%clk 0:00:04]} 62. Rxf5 {[%clk 0:00:22]}  Kxf5 {[%clk 0:00:05]} 63. Kg3 {[%clk 0:00:23]}  Kg5 {[%clk 0:00:06]} 64. Kg2 {[%clk 0:00:23]}  g3 {[%clk 0:00:07]} 65. Kxg3 {[%clk 0:00:23]} 1/2-1/2


[Site "https://www.chess.com"]

[Event "Titled Tuesday Blitz January 17 Late 2023"]
[White "Manukyan, Sargis A."]
[Black "Tari, Aryan"]
[WhiteFideId "13303970"]
[BlackFideId "1510045"]
[WhiteElo "2158"]
[BlackElo "2642"]
[Result "1-0"]
[Round "03"]
[TimeControl "180+2"]
[Date "2023.01.17"]
[WhiteClock "0:00:21"]
[BlackClock "0:00:05"]

1. d4 {[%clk 0:03:00]}  d5 {[%clk 0:02:54]} 2. c4 {[%clk 0:02:59]}  e6 {[%clk 0:02:55]} 3. Nc3 {[%clk 0:02:59]}  c5 {[%clk 0:02:51]} 4. cxd5 {[%clk 0:02:58]}  cxd4 {[%clk 0:02:51]} 5. Qxd4 {[%clk 0:02:58]}  Nc6 {[%clk 0:02:52]} 6. Qd1 {[%clk 0:02:59]}  exd5 {[%clk 0:02:52]} 7. Nf3 {[%clk 0:02:59]}  Nf6 {[%clk 0:02:52]} 8. e3 {[%clk 0:02:59]}  Bb4 {[%clk 0:02:53]} 9. Be2 {[%clk 0:02:59]}  Ne4 {[%clk 0:02:52]} 10. Bd2 {[%clk 0:02:57]}  Bxc3 {[%clk 0:02:50]} 11. Bxc3 {[%clk 0:02:56]}  Nxc3 {[%clk 0:02:48]} 12. bxc3 {[%clk 0:02:57]}  O-O {[%clk 0:02:45]} 13. O-O {[%clk 0:02:56]}  Qa5 {[%clk 0:02:37]} 14. c4 {[%clk 0:02:50]}  dxc4 {[%clk 0:02:33]} 15. Bxc4 {[%clk 0:02:51]}  Bg4 {[%clk 0:02:32]} 16. Qd5 {[%clk 0:02:41]}  Rad8 {[%clk 0:02:26]} 17. Qxa5 {[%clk 0:02:19]}  Nxa5 {[%clk 0:02:27]} 18. Be2 {[%clk 0:02:20]}  b6 {[%clk 0:02:22]} 19. h3 {[%clk 0:02:20]}  Bxf3 {[%clk 0:02:15]} 20. Bxf3 {[%clk 0:02:20]}  Rd2 {[%clk 0:02:16]} 21. Rfc1 {[%clk 0:02:08]}  Rfd8 {[%clk 0:02:12]} 22. Rc7 {[%clk 0:02:07]}  R2d7 {[%clk 0:02:12]} 23. Rac1 {[%clk 0:02:03]}  Kf8 {[%clk 0:02:12]} 24. Bg4 {[%clk 0:01:55]}  Rxc7 {[%clk 0:01:58]} 25. Rxc7 {[%clk 0:01:56]}  Rd2 {[%clk 0:01:57]} 26. a4 {[%clk 0:01:49]}  Ra2 {[%clk 0:01:21]} 27. Bd7 {[%clk 0:01:43]}  a6 {[%clk 0:01:12]} 28. Ra7 {[%clk 0:01:42]}  Nb3 {[%clk 0:01:13]} 29. Rxa6 {[%clk 0:01:35]}  Nc5 {[%clk 0:01:13]} 30. Ra8+ {[%clk 0:01:35]}  Ke7 {[%clk 0:01:14]} 31. Bb5 {[%clk 0:01:35]}  Ne4 {[%clk 0:01:14]} 32. Ra7+ {[%clk 0:01:35]}  Kf6 {[%clk 0:00:57]} 33. Rxf7+ {[%clk 0:01:35]}  Kxf7 {[%clk 0:00:58]} 34. Bc4+ {[%clk 0:01:35]}  Kf6 {[%clk 0:00:58]} 35. Bxa2 {[%clk 0:01:36]}  Nc5 {[%clk 0:00:59]} 36. f4 {[%clk 0:01:23]}  Nxa4 {[%clk 0:00:58]} 37. Kf2 {[%clk 0:01:19]}  b5 {[%clk 0:00:54]} 38. Kf3 {[%clk 0:01:11]}  b4 {[%clk 0:00:46]} 39. e4 {[%clk 0:01:09]}  Nc5 {[%clk 0:00:47]} 40. e5+ {[%clk 0:01:08]}  Ke7 {[%clk 0:00:47]} 41. g4 {[%clk 0:01:03]}  b3 {[%clk 0:00:47]} 42. Bb1 {[%clk 0:01:02]}  Na4 {[%clk 0:00:41]} 43. Bxh7 {[%clk 0:00:51]}  b2 {[%clk 0:00:41]} 44. Ke3 {[%clk 0:00:48]}  Nc3 {[%clk 0:00:41]} 45. h4 {[%clk 0:00:32]}  b1=Q {[%clk 0:00:21]} 46. Bxb1 {[%clk 0:00:32]}  Nxb1 {[%clk 0:00:21]} 47. Kd3 {[%clk 0:00:30]}  Ke6 {[%clk 0:00:19]} 48. h5 {[%clk 0:00:29]}  Na3 {[%clk 0:00:19]} 49. Ke4 {[%clk 0:00:29]}  Nc4 {[%clk 0:00:18]} 50. f5+ {[%clk 0:00:29]}  Kf7 {[%clk 0:00:18]} 51. g5 {[%clk 0:00:29]}  Nd2+ {[%clk 0:00:18]} 52. Kd5 {[%clk 0:00:28]}  Nf3 {[%clk 0:00:17]} 53. g6+ {[%clk 0:00:27]}  Ke7 {[%clk 0:00:18]} 54. h6 {[%clk 0:00:23]}  gxh6 {[%clk 0:00:16]} 55. f6+ {[%clk 0:00:22]}  Kf8 {[%clk 0:00:11]} 56. e6 {[%clk 0:00:22]}  Nh4 {[%clk 0:00:07]} 57. g7+ {[%clk 0:00:21]}  Kg8 {[%clk 0:00:07]} 58. e7 {[%clk 0:00:21]}  Kf7 {[%clk 0:00:05]} 1-0


[Site "https://www.chess.com"]

[Event "Titled Tuesday Blitz January 17 Late 2023"]
[White "Zakhartsov, Vladimir"]
[Black "Injac, Teodora"]
[WhiteFideId "4145097"]
[BlackFideId "932400"]
[WhiteElo "2552"]
[BlackElo "2391"]
[Result "1-0"]
[Round "03"]
[TimeControl "180+2"]
[Date "2023.01.17"]
[WhiteClock "0:00:03"]
[BlackClock "0:00:01"]

1. d4 {[%clk 0:02:58]}  Nf6 {[%clk 0:02:59]} 2. c4 {[%clk 0:02:58]}  g6 {[%clk 0:03:00]} 3. Nc3 {[%clk 0:02:58]}  Bg7 {[%clk 0:03:00]} 4. e4 {[%clk 0:02:58]}  d6 {[%clk 0:03:01]} 5. h3 {[%clk 0:02:59]}  e5 {[%clk 0:03:00]} 6. d5 {[%clk 0:02:43]}  a5 {[%clk 0:02:57]} 7. g4 {[%clk 0:02:41]}  Na6 {[%clk 0:02:57]} 8. Nge2 {[%clk 0:02:41]}  Nd7 {[%clk 0:02:54]} 9. Ng3 {[%clk 0:02:36]}  Qh4 {[%clk 0:02:44]} 10. Be3 {[%clk 0:02:29]}  Bh6 {[%clk 0:02:39]} 11. Qd2 {[%clk 0:02:29]}  Bxe3 {[%clk 0:02:38]} 12. Qxe3 {[%clk 0:02:30]}  f6 {[%clk 0:02:26]} 13. O-O-O {[%clk 0:02:28]}  Qg5 {[%clk 0:02:24]} 14. Qxg5 {[%clk 0:02:18]}  fxg5 {[%clk 0:02:25]} 15. h4 {[%clk 0:02:18]}  O-O {[%clk 0:02:17]} 16. Rd2 {[%clk 0:02:09]}  Ndc5 {[%clk 0:02:00]} 17. hxg5 {[%clk 0:01:49]}  Bxg4 {[%clk 0:02:00]} 18. Rh4 {[%clk 0:01:48]}  Bd7 {[%clk 0:01:34]} 19. Rh2 {[%clk 0:01:28]}  Rf7 {[%clk 0:01:33]} 20. Be2 {[%clk 0:01:22]}  Raf8 {[%clk 0:01:32]} 21. f3 {[%clk 0:01:22]}  a4 {[%clk 0:01:23]} 22. Rd1 {[%clk 0:01:13]}  Nb4 {[%clk 0:01:18]} 23. Rdh1 {[%clk 0:01:09]}  a3 {[%clk 0:01:04]} 24. bxa3 {[%clk 0:00:58]}  Nbd3+ {[%clk 0:01:04]} 25. Kd2 {[%clk 0:00:47]}  Nf4 {[%clk 0:01:03]} 26. Bd1 {[%clk 0:00:42]}  Ra8 {[%clk 0:01:02]} 27. Nb1 {[%clk 0:00:42]}  b5 {[%clk 0:00:59]} 28. Ne2 {[%clk 0:00:32]}  bxc4 {[%clk 0:00:43]} 29. Nxf4 {[%clk 0:00:32]}  exf4 {[%clk 0:00:44]} 30. Kc3 {[%clk 0:00:30]}  c6 {[%clk 0:00:36]} 31. Kxc4 {[%clk 0:00:22]}  cxd5+ {[%clk 0:00:36]} 32. Kxd5 {[%clk 0:00:22]}  Ra6 {[%clk 0:00:22]} 33. Kd4 {[%clk 0:00:20]}  Ne6+ {[%clk 0:00:16]} 34. Kc3 {[%clk 0:00:18]}  Nxg5 {[%clk 0:00:17]} 35. Rf2 {[%clk 0:00:15]}  Be6 {[%clk 0:00:17]} 36. Bb3 {[%clk 0:00:15]}  Rc7+ {[%clk 0:00:16]} 37. Kb2 {[%clk 0:00:15]}  Rb6 {[%clk 0:00:16]} 38. Rd1 {[%clk 0:00:12]}  Rcb7 {[%clk 0:00:16]} 39. Rd3 {[%clk 0:00:12]}  Nf7 {[%clk 0:00:14]} 40. Nd2 {[%clk 0:00:11]}  Ne5 {[%clk 0:00:14]} 41. Rc3 {[%clk 0:00:11]}  Kf7 {[%clk 0:00:11]} 42. Kc2 {[%clk 0:00:11]}  g5 {[%clk 0:00:11]} 43. Rh2 {[%clk 0:00:08]}  Bxb3+ {[%clk 0:00:09]} 44. axb3 {[%clk 0:00:08]}  Kg6 {[%clk 0:00:08]} 45. a4 {[%clk 0:00:08]}  h5 {[%clk 0:00:08]} 46. Rc8 {[%clk 0:00:09]}  Rc6+ {[%clk 0:00:07]} 47. Rxc6 {[%clk 0:00:09]}  Nxc6 {[%clk 0:00:08]} 48. Kc3 {[%clk 0:00:09]}  g4 {[%clk 0:00:07]} 49. fxg4 {[%clk 0:00:06]}  hxg4 {[%clk 0:00:08]} 50. Rh8 {[%clk 0:00:01]}  Ne5 {[%clk 0:00:07]} 51. Rg8+ {[%clk 0:00:02]}  Kf6 {[%clk 0:00:07]} 52. b4 {[%clk 0:00:01]}  g3 {[%clk 0:00:07]} 53. a5 {[%clk 0:00:02]}  Rg7 {[%clk 0:00:06]} 54. Rxg7 {[%clk 0:00:01]}  Kxg7 {[%clk 0:00:07]} 55. a6 {[%clk 0:00:01]}  g2 {[%clk 0:00:08]} 56. a7 {[%clk 0:00:02]}  g1=Q {[%clk 0:00:08]} 57. a8=Q {[%clk 0:00:02]}  Qe3+ {[%clk 0:00:08]} 58. Kc2 {[%clk 0:00:02]}  Qd3+ {[%clk 0:00:08]} 59. Kd1 {[%clk 0:00:03]}  Nf3 {[%clk 0:00:04]} 60. Qd5 {[%clk 0:00:03]}  Qxd5 {[%clk 0:00:03]} 61. exd5 {[%clk 0:00:03]}  Nd4 {[%clk 0:00:02]} 62. Ne4 {[%clk 0:00:03]}  f3 {[%clk 0:00:01]} 63. Ke1 {[%clk 0:00:03]} 1-0


[Site "https://www.chess.com"]

[Event "Titled Tuesday Blitz January 17 Late 2023"]
[White "Skvortsov, Andrei"]
[Black "Svane, Frederik"]
[WhiteFideId "24108600"]
[BlackFideId "12923044"]
[WhiteElo "2313"]
[BlackElo "2600"]
[Result "0-1"]
[Round "03"]
[TimeControl "180+2"]
[Date "2023.01.17"]
[WhiteClock "0:00:04"]
[BlackClock "0:00:08"]

1. e4 {[%clk 0:03:00]}  c5 {[%clk 0:02:52]} 2. d4 {[%clk 0:03:01]}  cxd4 {[%clk 0:02:53]} 3. Qxd4 {[%clk 0:03:01]}  Nc6 {[%clk 0:02:52]} 4. Qd3 {[%clk 0:03:01]}  g6 {[%clk 0:02:52]} 5. Nf3 {[%clk 0:03:00]}  Bg7 {[%clk 0:02:53]} 6. Be2 {[%clk 0:03:00]}  d6 {[%clk 0:02:53]} 7. O-O {[%clk 0:03:00]}  Nf6 {[%clk 0:02:53]} 8. Nc3 {[%clk 0:03:00]}  O-O {[%clk 0:02:53]} 9. Nd5 {[%clk 0:03:01]}  Be6 {[%clk 0:02:41]} 10. c3 {[%clk 0:02:59]}  Nd7 {[%clk 0:02:33]} 11. Bg5 {[%clk 0:02:55]}  h6 {[%clk 0:02:32]} 12. Bh4 {[%clk 0:02:55]}  Nc5 {[%clk 0:02:26]} 13. Qe3 {[%clk 0:02:54]}  g5 {[%clk 0:02:13]} 14. b4 {[%clk 0:02:17]}  Nd7 {[%clk 0:01:20]} 15. Bg3 {[%clk 0:02:03]}  f5 {[%clk 0:01:20]} 16. Nxg5 {[%clk 0:02:01]}  hxg5 {[%clk 0:01:19]} 17. Qxg5 {[%clk 0:02:02]}  fxe4 {[%clk 0:00:55]} 18. Nf4 {[%clk 0:02:02]}  Bf7 {[%clk 0:00:52]} 19. Nh5 {[%clk 0:01:34]}  Bxh5 {[%clk 0:00:48]} 20. Bxh5 {[%clk 0:01:27]}  e6 {[%clk 0:00:48]} 21. Qg4 {[%clk 0:01:21]}  Qe7 {[%clk 0:00:44]} 22. Qxe4 {[%clk 0:01:19]}  Nf6 {[%clk 0:00:40]} 23. Qh4 {[%clk 0:01:15]}  Nxh5 {[%clk 0:00:39]} 24. Qxh5 {[%clk 0:01:16]}  Bxc3 {[%clk 0:00:39]} 25. Rad1 {[%clk 0:01:12]}  d5 {[%clk 0:00:36]} 26. b5 {[%clk 0:01:10]}  Nd8 {[%clk 0:00:31]} 27. Rd3 {[%clk 0:01:11]}  Bg7 {[%clk 0:00:27]} 28. Bh4 {[%clk 0:01:09]}  Qf7 {[%clk 0:00:25]} 29. Qe2 {[%clk 0:01:06]}  Qf4 {[%clk 0:00:22]} 30. Bxd8 {[%clk 0:01:01]}  Raxd8 {[%clk 0:00:23]} 31. Qxe6+ {[%clk 0:01:01]}  Qf7 {[%clk 0:00:24]} 32. Qg4 {[%clk 0:00:58]}  Qf5 {[%clk 0:00:22]} 33. Qd1 {[%clk 0:00:54]}  d4 {[%clk 0:00:21]} 34. Rg3 {[%clk 0:00:50]}  Rf7 {[%clk 0:00:18]} 35. Qa4 {[%clk 0:00:48]}  d3 {[%clk 0:00:17]} 36. Rf3 {[%clk 0:00:43]}  Qd5 {[%clk 0:00:17]} 37. Rxf7 {[%clk 0:00:39]}  Qxf7 {[%clk 0:00:18]} 38. g3 {[%clk 0:00:19]}  d2 {[%clk 0:00:17]} 39. Qg4 {[%clk 0:00:19]}  Rd4 {[%clk 0:00:14]} 40. Qe2 {[%clk 0:00:19]}  Qd5 {[%clk 0:00:13]} 41. Rd1 {[%clk 0:00:18]}  Qd7 {[%clk 0:00:08]} 42. a3 {[%clk 0:00:16]}  Rd5 {[%clk 0:00:08]} 43. a4 {[%clk 0:00:15]}  Bd4 {[%clk 0:00:07]} 44. Kg2 {[%clk 0:00:15]}  Bb6 {[%clk 0:00:07]} 45. Qe4 {[%clk 0:00:15]}  Rf5 {[%clk 0:00:05]} 46. Rxd2 {[%clk 0:00:13]}  Qxd2 {[%clk 0:00:03]} 47. Qxf5 {[%clk 0:00:13]}  Qd4 {[%clk 0:00:04]} 48. Qe6+ {[%clk 0:00:13]}  Kg7 {[%clk 0:00:04]} 49. Qe7+ {[%clk 0:00:14]}  Kg6 {[%clk 0:00:04]} 50. Qe6+ {[%clk 0:00:14]}  Kg7 {[%clk 0:00:05]} 51. Qe7+ {[%clk 0:00:14]}  Kh6 {[%clk 0:00:06]} 52. Qf8+ {[%clk 0:00:10]}  Kg6 {[%clk 0:00:05]} 53. Qe8+ {[%clk 0:00:10]}  Kf6 {[%clk 0:00:04]} 54. Qf8+ {[%clk 0:00:09]}  Ke6 {[%clk 0:00:04]} 55. h4 {[%clk 0:00:08]}  Qe4+ {[%clk 0:00:04]} 56. f3 {[%clk 0:00:08]}  Qe2+ {[%clk 0:00:04]} 57. Kh3 {[%clk 0:00:09]}  Qf1+ {[%clk 0:00:05]} 58. Kg4 {[%clk 0:00:09]}  Qc4+ {[%clk 0:00:06]} 59. Kh3 {[%clk 0:00:09]}  Qxa4 {[%clk 0:00:06]} 60. Qc8+ {[%clk 0:00:09]}  Kd6 {[%clk 0:00:06]} 61. Qxb7 {[%clk 0:00:09]}  Qxb5 {[%clk 0:00:06]} 62. h5 {[%clk 0:00:09]}  Qf1+ {[%clk 0:00:06]} 63. Kg4 {[%clk 0:00:09]}  Qc4+ {[%clk 0:00:07]} 64. Kh3 {[%clk 0:00:08]}  Qe6+ {[%clk 0:00:07]} 65. Kg2 {[%clk 0:00:07]}  Qe2+ {[%clk 0:00:07]} 66. Kh3 {[%clk 0:00:07]}  Qf1+ {[%clk 0:00:06]} 67. Kg4 {[%clk 0:00:08]}  Qc4+ {[%clk 0:00:06]} 68. Kh3 {[%clk 0:00:08]}  Qd5 {[%clk 0:00:07]} 69. Qb8+ {[%clk 0:00:08]}  Kc6 {[%clk 0:00:06]} 70. Qa8+ {[%clk 0:00:08]}  Kc5 {[%clk 0:00:07]} 71. Qf8+ {[%clk 0:00:06]}  Kc4 {[%clk 0:00:06]} 72. g4 {[%clk 0:00:05]}  a5 {[%clk 0:00:06]} 73. h6 {[%clk 0:00:05]}  Bd4 {[%clk 0:00:06]} 74. h7 {[%clk 0:00:05]}  a4 {[%clk 0:00:06]} 75. h8=Q {[%clk 0:00:03]}  Bxh8 {[%clk 0:00:07]} 76. Qxh8 {[%clk 0:00:04]}  Qxf3+ {[%clk 0:00:07]} 77. Kh4 {[%clk 0:00:04]}  Qh1+ {[%clk 0:00:07]} 78. Kg5 {[%clk 0:00:04]}  Qxh8 {[%clk 0:00:08]} 0-1


[Site "https://www.chess.com"]

[Event "Titled Tuesday Blitz January 17 Late 2023"]
[White "Rasulov, Vugar"]
[Black "Domingo Nunez, Ruben"]
[WhiteFideId "13402390"]
[BlackFideId "22245570"]
[WhiteElo "2523"]
[BlackElo "2416"]
[Result "1-0"]
[Round "03"]
[TimeControl "180+2"]
[Date "2023.01.17"]
[WhiteClock "0:00:04"]
[BlackClock "0:00:03"]

1. Nf3 {[%clk 0:03:00]}  g6 {[%clk 0:02:48]} 2. g3 {[%clk 0:03:01]}  Bg7 {[%clk 0:02:49]} 3. Bg2 {[%clk 0:03:01]}  Nf6 {[%clk 0:02:49]} 4. O-O {[%clk 0:03:01]}  O-O {[%clk 0:02:50]} 5. d3 {[%clk 0:03:01]}  c5 {[%clk 0:02:50]} 6. e4 {[%clk 0:03:01]}  Nc6 {[%clk 0:02:51]} 7. Nbd2 {[%clk 0:03:00]}  Rb8 {[%clk 0:02:51]} 8. Re1 {[%clk 0:02:53]}  b5 {[%clk 0:02:52]} 9. Nf1 {[%clk 0:02:47]}  b4 {[%clk 0:02:48]} 10. e5 {[%clk 0:02:37]}  Ng4 {[%clk 0:02:46]} 11. Bf4 {[%clk 0:02:36]}  d6 {[%clk 0:02:41]} 12. exd6 {[%clk 0:02:36]}  exd6 {[%clk 0:02:42]} 13. h3 {[%clk 0:02:30]}  Nge5 {[%clk 0:02:35]} 14. Nxe5 {[%clk 0:02:30]}  Nxe5 {[%clk 0:02:36]} 15. Ne3 {[%clk 0:02:27]}  Be6 {[%clk 0:02:36]} 16. Nd5 {[%clk 0:02:25]}  g5 {[%clk 0:02:28]} 17. Be3 {[%clk 0:02:17]}  f5 {[%clk 0:02:28]} 18. d4 {[%clk 0:02:11]}  cxd4 {[%clk 0:01:52]} 19. Bxd4 {[%clk 0:02:12]}  f4 {[%clk 0:01:50]} 20. Be4 {[%clk 0:01:54]}  Bxh3 {[%clk 0:01:31]} 21. gxf4 {[%clk 0:01:30]}  Bg4 {[%clk 0:00:37]} 22. f3 {[%clk 0:01:29]}  Nxf3+ {[%clk 0:00:19]} 23. Bxf3 {[%clk 0:01:30]}  Bxf3 {[%clk 0:00:19]} 24. Qxf3 {[%clk 0:01:31]}  Bxd4+ {[%clk 0:00:19]} 25. Kh1 {[%clk 0:01:27]}  Qd7 {[%clk 0:00:20]} 26. Rad1 {[%clk 0:01:12]}  Bg7 {[%clk 0:00:18]} 27. Rg1 {[%clk 0:00:57]}  Kh8 {[%clk 0:00:19]} 28. Rxg5 {[%clk 0:00:56]}  Bh6 {[%clk 0:00:19]} 29. Rh5 {[%clk 0:00:55]}  Bg7 {[%clk 0:00:19]} 30. Rg1 {[%clk 0:00:49]}  Qf7 {[%clk 0:00:18]} 31. Qh3 {[%clk 0:00:41]}  h6 {[%clk 0:00:17]} 32. Qh4 {[%clk 0:00:18]}  Rb5 {[%clk 0:00:17]} 33. Rxg7 {[%clk 0:00:08]}  Qxg7 {[%clk 0:00:16]} 34. Rxh6+ {[%clk 0:00:08]}  Kg8 {[%clk 0:00:16]} 35. Ne7+ {[%clk 0:00:08]}  Kf7 {[%clk 0:00:17]} 36. Rh7 {[%clk 0:00:08]}  Rh8 {[%clk 0:00:02]} 37. Rxh8 {[%clk 0:00:09]}  Ke6 {[%clk 0:00:02]} 38. Rh6+ {[%clk 0:00:07]}  Kd7 {[%clk 0:00:02]} 39. Rh7 {[%clk 0:00:06]}  Qxb2 {[%clk 0:00:02]} 40. Nf5+ {[%clk 0:00:05]}  Kc6 {[%clk 0:00:03]} 41. Ne7+ {[%clk 0:00:04]}  Kb6 {[%clk 0:00:03]} 42. Nc8+ {[%clk 0:00:04]}  Ka6 {[%clk 0:00:03]} 43. Rxa7# {[%clk 0:00:04]} 1-0


[Site "https://www.chess.com"]

[Event "Titled Tuesday Blitz January 17 Late 2023"]
[White "Di Berardino, Diego Rafael"]
[Black "Ibarra Jerez, Jose Carlos"]
[WhiteFideId "2105446"]
[BlackFideId "2226332"]
[WhiteElo "2479"]
[BlackElo "2563"]
[Result "0-1"]
[Round "03"]
[TimeControl "180+2"]
[Date "2023.01.17"]
[WhiteClock "0:00:14"]
[BlackClock "0:01:26"]

1. e4 {[%clk 0:03:00]}  c5 {[%clk 0:02:58]} 2. Nf3 {[%clk 0:02:59]}  Nc6 {[%clk 0:02:59]} 3. d4 {[%clk 0:02:58]}  cxd4 {[%clk 0:02:59]} 4. Nxd4 {[%clk 0:02:58]}  e5 {[%clk 0:02:59]} 5. Nb5 {[%clk 0:02:58]}  d6 {[%clk 0:02:59]} 6. N1c3 {[%clk 0:02:56]}  a6 {[%clk 0:02:57]} 7. Na3 {[%clk 0:02:55]}  Be6 {[%clk 0:02:57]} 8. Nc4 {[%clk 0:02:53]}  Rb8 {[%clk 0:02:57]} 9. Ne3 {[%clk 0:02:46]}  Nf6 {[%clk 0:02:56]} 10. Ned5 {[%clk 0:02:44]}  g6 {[%clk 0:02:51]} 11. Bg5 {[%clk 0:02:40]}  Bg7 {[%clk 0:02:51]} 12. Bxf6 {[%clk 0:02:37]}  Bxf6 {[%clk 0:02:51]} 13. Be2 {[%clk 0:02:09]}  Bg7 {[%clk 0:02:45]} 14. O-O {[%clk 0:02:04]}  O-O {[%clk 0:02:45]} 15. Ne3 {[%clk 0:02:01]}  Nd4 {[%clk 0:02:38]} 16. Ncd5 {[%clk 0:01:55]}  f5 {[%clk 0:02:33]} 17. c3 {[%clk 0:01:35]}  Nxe2+ {[%clk 0:02:32]} 18. Qxe2 {[%clk 0:01:35]}  f4 {[%clk 0:02:20]} 19. Nc4 {[%clk 0:01:34]}  b5 {[%clk 0:02:19]} 20. Nd2 {[%clk 0:01:33]}  g5 {[%clk 0:02:15]} 21. h3 {[%clk 0:01:09]}  Rb7 {[%clk 0:01:45]} 22. Rad1 {[%clk 0:01:03]}  Qe8 {[%clk 0:01:45]} 23. Nb3 {[%clk 0:00:44]}  f3 {[%clk 0:01:41]} 24. Qe3 {[%clk 0:00:37]}  Qh5 {[%clk 0:01:36]} 25. Kh2 {[%clk 0:00:17]}  fxg2 {[%clk 0:01:28]} 26. Rg1 {[%clk 0:00:14]}  Rf3 {[%clk 0:01:26]} 0-1


[Site "https://www.chess.com"]